bitfinex/quotes_SOLUSD_20220119
["timestamp","ask_amount","ask_price","bid_price","bid_amount"]
[1642578477057,6.0,134.3,134.23,12.32506383]
[1642578477257,6.0,134.3,134.24,32.42007625]
[1642578477458,1.90894413,134.33,134.25,10.74]
[1642578477658,6.0,134.31,134.25,10.74]
[1642578477860,1.90894413,134.34,134.26,74.03]
[1642578478058,6.0,134.32,134.27,40.32430629]
[1642578478258,6.0,134.32,134.27,51.49330629]
[1642578478459,6.0,134.32,134.27,40.32430629]
[1642578478658,6.0,134.33,134.26,10.74]
[1642578478858,2.978,134.32,134.26,10.74]
[1642578479062,6.0,134.31,134.26,10.74]
[1642578479758,6.0,134.31,134.27,49.56853535]
[1642578480362,2.978,134.3,134.11,208.81351263]
[1642578480563,6.0,134.29,134.21,10.74]
[1642578480763,3.229,134.28,134.21,10.74]
[1642578481162,6.0,134.27,134.21,10.74]
[1642578481362,2.979,134.26,134.22,46.92420759]
[1642578481563,6.0,134.25,134.23,10.74]
[1642578481764,0.25,134.24,134.23,10.74]
[1642578482264,8.979,134.28,134.24,33.0]
[1642578482464,6.0,134.28,134.24,33.0]
[1642578482764,6.0,134.29,134.25,25.32017495]
[1642578483063,6.0,134.31,134.25,25.32017495]
[1642578483463,17.1726,134.31,134.25,25.32017495]
[1642578483664,11.1726,134.31,134.25,36.06017495]
[1642578483864,6.0,134.3,134.25,36.06017495]
[1642578485563,8.978,134.3,134.25,36.06017495]
[1642578485964,20.1514,134.3,134.25,36.06017495]
[1642578486165,17.1734,134.3,134.25,36.06017495]
[1642578486365,6.0,134.3,134.25,36.06017495]
[1642578486564,6.0,134.31,134.25,36.06017495]
[1642578486767,6.25,134.31,134.25,36.06017495]
[1642578487068,6.0,134.3,134.25,36.06017495]
[1642578490676,1.90894413,134.34,134.26,44.0]
[1642578490879,1.90894413,134.34,134.27,84.77]
[1642578491072,1.90894413,134.34,134.27,86.35843496]
[1642578491275,27.74804413,134.36,134.27,86.35843496]
[1642578491478,1.90894413,134.36,134.28,40.92420759]
[1642578491674,1.90894413,134.37,134.28,40.92420759]
[1642578492075,1.90894413,134.37,134.28,114.95420759]
[1642578492276,5.5,134.36,134.29,10.74]
[1642578492875,13.07644413,134.38,134.29,95.938]
[1642578494277,1.90894413,134.38,134.29,95.938]
[1642578494476,6.0,134.37,134.29,95.938]
[1642578494677,6.0,134.37,134.3,0.25]
[1642578494877,3.17320293,134.39,134.32,11.1643]
[1642578495080,1.90894413,134.39,134.33,25.32017495]
[1642578495278,1.90894413,134.4,134.33,25.32017495]
[1642578495479,1.90894413,134.4,134.33,99.35017495]
[1642578495878,1.90894413,134.4,134.34,11.1639]
[1642578496078,1.90894413,134.41,134.34,11.1639]
[1642578496507,1.90894413,134.42,134.34,11.1639]
[1642578496679,1.90894413,134.42,134.34,85.1939]
[1642578497081,1.90894413,134.42,134.35,1.59129695]
[1642578497481,1.90894413,134.42,134.36,11.1626]
[1642578497685,13.07164413,134.43,134.37,40.92420759]
[1642578497884,6.0,134.41,134.37,40.92420759]
[1642578498084,8.976,134.42,134.37,40.92420759]
[1642578498483,6.0,134.42,134.37,40.92420759]
[1642578499486,6.0,134.42,134.37,52.08650759]
[1642578500187,6.0,134.43,134.37,52.08650759]
[1642578501387,6.0,134.43,134.36,11.1631]
[1642578501388,17.1626,134.43,134.36,11.1631]
[1642578501687,3.226,134.42,134.32,10.74]
[1642578501886,5.13494413,134.42,134.32,10.74]
[1642578502086,6.0,134.41,134.32,10.74]
[1642578502388,6.0,134.41,134.34,11.1647]
[1642578502586,6.0,134.43,134.34,21.9047]
[1642578502790,8.976,134.43,134.35,114.87776308]
[1642578502988,6.0,134.43,134.35,114.87776308]
[1642578503390,2.976,134.42,134.35,40.84776308]
[1642578503690,20.1386,134.43,134.38,25.39661946]
[1642578503891,6.0,134.41,134.38,25.39661946]
[1642578504116,17.1626,134.43,134.38,25.39661946]
[1642578504318,2.976,134.42,134.38,25.39661946]
[1642578504516,6.0,134.41,134.38,25.39661946]
[1642578505318,6.0,134.42,134.38,25.39661946]
[1642578505715,6.0,134.42,134.38,36.55801946]
[1642578505915,1.90894413,134.45,134.38,36.55801946]
[1642578506116,6.0,134.44,134.38,36.55801946]
[1642578506516,6.0,134.45,134.38,36.55801946]
[1642578507216,6.0,134.45,134.39,74.03]
[1642578507520,6.0,134.45,134.4,11.1593]
[1642578507917,13.06884413,134.47,134.4,11.1593]
[1642578508116,6.0,134.46,134.41,40.84776308]
[1642578508317,6.0,134.46,134.41,52.00656308]
[1642578508916,8.975,134.46,134.41,52.00656308]
[1642578509515,6.0,134.46,134.41,52.00656308]
[1642578510317,17.1601,134.46,134.4,11.1598]
[1642578510519,2.975,134.45,134.37,33.7075]
[1642578510917,6.0,134.44,134.37,33.7075]
[1642578511317,1.90894413,134.47,134.38,11.1609]
[1642578511521,6.0,134.46,134.39,74.03]
[1642578511921,42.87209156,134.46,134.4,36.56255511]
[1642578512122,9.225,134.45,134.37,10.74]
[1642578512321,11.1623,134.44,134.35,35.2632]
[1642578512521,8.976,134.43,134.35,35.2632]
[1642578512722,9.226,134.43,134.35,35.2632]
[1642578512922,8.976,134.43,134.35,35.2632]
[1642578513223,8.976,134.43,134.36,1.58903619]
[1642578513425,8.976,134.43,134.36,12.75183619]
[1642578513824,8.976,134.43,134.37,1.58903619]
[1642578514024,8.976,134.43,134.37,37.30005567]
[1642578514628,20.1386,134.43,134.37,37.30005567]
[1642578515125,6.0,134.43,134.37,48.46195567]
[1642578515331,2.976,134.42,134.37,48.46195567]
[1642578515526,6.0,134.41,134.37,37.30005567]
[1642578515928,1.90894413,134.44,134.37,37.30005567]
[1642578516126,6.0,134.43,134.37,37.30005567]
[1642578516326,2.976,134.42,134.37,37.30005567]
[1642578516529,8.976,134.43,134.37,48.46185567]
[1642578516727,6.0,134.43,134.37,48.46185567]
[1642578517428,7.90894413,134.43,134.37,48.46185567]
[1642578517927,6.0,134.43,134.37,48.46185567]
[1642578518429,7.90894413,134.43,134.37,48.46185567]
[1642578519030,10.88494413,134.43,134.37,48.46185567]
[1642578519432,22.04764413,134.43,134.37,37.30005567]
[1642578519633,19.07164413,134.43,134.37,37.30005567]
[1642578519932,7.90894413,134.43,134.37,37.30005567]
[1642578520532,1.90894413,134.42,134.37,48.46185567]
[1642578520932,6.0,134.41,134.37,48.46185567]
[1642578521135,1.90894413,134.43,134.37,48.46185567]
[1642578521534,7.90894413,134.42,134.37,48.46185567]
[1642578521832,7.90894413,134.42,134.37,37.30005567]
[1642578522033,7.90894413,134.42,134.35,48.679]
[1642578522234,1.90894413,134.41,134.35,48.679]
[1642578522535,6.0,134.4,134.34,10.74]
[1642578522734,6.0,134.4,134.35,11.1635]
[1642578522934,6.0,134.4,134.35,46.54524864]
[1642578523135,1.90894413,134.41,134.35,46.54524864]
[1642578523635,6.0,134.4,134.35,46.54524864]
[1642578524337,1.90894413,134.41,134.35,46.54524864]
[1642578524937,6.0,134.4,134.35,46.54524864]
[1642578525136,6.0,134.4,134.35,57.28524864]
[1642578525336,7.90894413,134.4,134.35,57.28524864]
[1642578525537,1.90894413,134.4,134.35,57.28524864]
[1642578526738,1.90894413,134.39,134.35,57.28524864]
[1642578527740,2.976,134.38,134.31,37.214]
[1642578527943,8.976,134.38,134.31,10.74]
[1642578528142,10.88494413,134.38,134.31,10.74]
[1642578528444,4.88594413,134.37,134.31,10.74]
[1642578528641,6.0,134.36,134.29,10.74]
[1642578528842,2.977,134.35,134.28,74.04014185]
[1642578529041,2.977,134.35,134.28,39.45234185]
[1642578529042,6.0,134.34,134.28,39.45234185]
[1642578529842,6.0,134.34,134.28,50.62164185]
[1642578530041,6.0,134.35,134.28,124.65164185]
[1642578531047,6.0,134.35,134.28,39.45234185]
[1642578531242,7.90894413,134.35,134.28,39.45234185]
[1642578531444,6.0,134.35,134.28,39.45234185]
[1642578532243,17.1694,134.35,134.28,50.62174185]
[1642578532645,6.0,134.35,134.28,50.62174185]
[1642578532846,1.90894413,134.36,134.29,0.25]
[1642578533048,2.978,134.38,134.29,0.25]
[1642578533049,1.90894413,134.38,134.29,0.25]
[1642578533246,1.90894413,134.38,134.31,11.1661]
[1642578533448,34.6079,134.4,134.32,26.79204069]
[1642578533449,6.0,134.37,134.32,26.79204069]
[1642578533750,6.0,134.38,134.32,26.79204069]
[1642578534145,6.0,134.38,134.32,37.53204069]
[1642578534347,1.90894413,134.4,134.33,0.25]
[1642578534546,6.0,134.39,134.34,74.03]
[1642578534746,1.90894413,134.41,134.35,0.25]
[1642578534948,1.90894413,134.41,134.35,36.93346827]
[1642578535147,6.0,134.4,134.35,36.68346827]
[1642578536550,6.0,134.4,134.35,47.84646827]
[1642578538092,6.0,134.41,134.35,47.84646827]
[1642578540095,2.33230642,134.41,134.38,41.0]
[1642578540296,1.69645224,134.49,134.38,10.74]
[1642578540297,2.10030705,134.43,134.38,10.74]
[1642578540596,2.10030705,134.44,134.38,12.32903619]
[1642578540799,2.10030705,134.45,134.38,12.32903619]
[1642578541000,2.10030705,134.45,134.39,23.98427656]
[1642578541204,7.003851,134.48,134.4,63.4091]
[1642578541400,4.028851,134.48,134.4,64.99813619]
[1642578541625,1.69645224,134.49,134.41,1.58903619]
[1642578541829,1.69645224,134.49,134.41,12.32903619]
[1642578542025,4.028851,134.5,134.42,0.25]
[1642578542225,4.028851,134.51,134.43,11.156]
[1642578542424,4.028851,134.51,134.44,74.03]
[1642578542627,6.0,134.5,134.43,11.156]
[1642578543227,6.0,134.5,134.43,85.186]
[1642578544037,6.0,134.51,134.44,0.25]
[1642578544229,6.0,134.51,134.45,11.1546]
[1642578544428,6.0,134.51,134.46,23.98427656]
[1642578544628,0.25,134.5,134.46,23.98427656]
[1642578545228,3.224,134.5,134.43,11.1564]
[1642578545428,3.224,134.5,134.41,10.74]
[1642578545627,6.0,134.49,134.41,10.74]
[1642578545829,3.225,134.48,134.41,10.74]
[1642578546028,6.0,134.47,134.37,58.3064]
[1642578546229,11.1618,134.44,134.38,48.59697197]
[1642578546430,2.975,134.43,134.38,37.43587197]
[1642578546631,9.225,134.43,134.38,37.43587197]
[1642578546829,6.25,134.43,134.38,37.43587197]
[1642578547031,6.0,134.44,134.39,74.03]
[1642578547230,6.0,134.44,134.38,37.43587197]
[1642578547429,6.0,134.45,134.38,37.43587197]
[1642578547629,6.25,134.46,134.38,37.43587197]
[1642578547830,2.975,134.45,134.38,37.43587197]
[1642578548031,6.0,134.44,134.38,37.43587197]
[1642578548230,6.25,134.44,134.38,37.43587197]
[1642578548531,6.0,134.44,134.38,48.59687197]
[1642578550338,6.0,134.44,134.38,122.62687197]
[1642578550839,2.975,134.43,134.37,11.1619]
[1642578551140,3.225,134.43,134.33,72.1932]
[1642578551339,6.0,134.42,134.34,74.03]
[1642578551739,46.8382899,134.41,134.34,47.27011722]
[1642578551941,50.0642899,134.41,134.34,47.27011722]
[1642578552139,6.0,134.4,134.33,34.9855]
[1642578552538,8.976,134.4,134.33,34.9855]
[1642578553039,8.976,134.4,134.33,109.0155]
[1642578553338,6.0,134.4,134.34,0.25]
[1642578553538,0.25,134.41,134.34,36.50811307]
[1642578553738,6.25,134.42,134.34,36.50811307]
[1642578553940,0.25,134.42,134.34,36.50811307]
[1642578554340,11.4135,134.42,134.34,47.42241307]
[1642578554542,8.976,134.41,134.34,47.42241307]
[1642578554838,0.25,134.4,134.34,47.42241307]
[1642578555039,0.25,134.4,134.34,11.1643]
[1642578555241,2.976,134.39,134.32,35.0335]
[1642578555439,2.976,134.39,134.3,11.167]
[1642578555641,6.25,134.38,134.3,10.74]
[1642578556042,42.08604077,134.38,134.31,42.48952916]
[1642578556242,6.25,134.38,134.31,42.48952916]
[1642578556440,17.4172,134.38,134.31,53.65632916]
[1642578556642,6.0,134.37,134.31,53.65632916]
[1642578557044,6.0,134.37,134.32,74.03]
[1642578557243,6.0,134.39,134.32,74.03]
[1642578557443,6.0,134.39,134.32,110.34853619]
[1642578557643,17.1643,134.41,134.33,11.1648]
[1642578557844,17.1643,134.41,134.34,90.10790862]
[1642578557845,6.0,134.41,134.34,90.10790862]
[1642578558044,6.0,134.43,134.34,102.68694481]
[1642578558344,6.0,134.43,134.35,1.58903619]
[1642578558545,6.0,134.44,134.35,1.58903619]
[1642578558746,6.0,134.44,134.36,0.25]
[1642578558945,17.1625,134.44,134.37,11.1615]
[1642578559146,17.1625,134.44,134.38,42.48952916]
[1642578559349,20.1385,134.44,134.38,42.48952916]
[1642578560149,6.0,134.44,134.38,42.48952916]
[1642578560347,0.25,134.43,134.38,42.48952916]
[1642578560749,0.25,134.43,134.38,53.65002916]
[1642578560949,2.976,134.46,134.38,55.23517311]
[1642578561148,1.69609909,134.48,134.39,0.25]
[1642578561149,8.70095009,134.48,134.39,0.25]
[1642578561351,1.69609909,134.48,134.39,34.9468]
[1642578561550,0.25,134.47,134.4,75.61514395]
[1642578562050,0.25,134.47,134.41,16.07790862]
[1642578562456,6.25,134.47,134.41,27.23550862]
[1642578562650,0.25,134.47,134.41,27.23550862]
[1642578562851,6.25,134.47,134.41,27.23550862]
[1642578565153,6.0,134.47,134.42,0.25]
[1642578565354,6.0,134.47,134.43,11.1553]
[1642578565652,6.0,134.47,134.44,36.49540886]
[1642578566253,6.0,134.47,134.44,110.52540886]
[1642578566453,6.0,134.47,134.44,121.68080886]
[1642578568856,6.0,134.47,134.44,47.65080886]
[1642578569061,6.0,134.47,134.44,36.49540886]
[1642578570162,6.0,134.47,134.43,11.1565]
[1642578570360,6.0,134.47,134.42,11.1575]
[1642578570561,6.0,134.47,134.41,10.74]
[1642578571162,6.0,134.47,134.42,47.8107273]
[1642578572562,0.25,134.46,134.4,10.74]
[1642578573062,0.25,134.46,134.38,10.74]
[1642578573262,0.25,134.46,134.4,0.25]
[1642578574062,0.25,134.46,134.4,11.4091]
[1642578575163,6.0,134.47,134.4,11.4091]
[1642578575589,6.0,134.46,134.4,12.99265053]
[1642578576191,6.0,134.46,134.4,23.73265053]
[1642578576393,6.0,134.48,134.4,23.73265053]
[1642578576590,4.028851,134.5,134.4,23.73265053]
[1642578576591,6.0,134.49,134.4,23.73265053]
[1642578576790,6.0,134.49,134.41,74.03]
[1642578577194,6.0,134.49,134.43,11.1553]
[1642578577593,6.0,134.5,134.44,0.25]
[1642578577892,6.0,134.5,134.44,14.02779786]
[1642578578094,6.0,134.5,134.44,25.18309786]
[1642578578394,7.003851,134.52,134.44,26.76664839]
[1642578578691,6.25,134.51,134.45,74.03]
[1642578579092,2.974,134.5,134.45,74.03]
[1642578579494,2.974,134.5,134.47,44.78963992]
[1642578579694,6.06439994,134.49,134.47,44.78963992]
[1642578580298,2.974,134.5,134.47,44.78963992]
[1642578581100,6.0,134.51,134.47,55.94273992]
[1642578581399,7.002851,134.53,134.47,55.94273992]
[1642578581598,6.0,134.52,134.47,55.94273992]
[1642578582201,2.974,134.53,134.47,55.94273992]
[1642578582502,2.974,134.53,134.48,74.03]
[1642578582704,4.028851,134.54,134.48,74.03]
[1642578582900,6.0,134.53,134.48,85.1815]
[1642578583099,6.0,134.54,134.48,85.1815]
[1642578583300,6.25,134.54,134.48,11.1515]
[1642578583501,6.0,134.54,134.49,74.03]
[1642578583705,6.0,134.54,134.49,74.28]
[1642578583902,2.973,134.57,134.5,68.15]
[1642578584101,4.19164137,134.58,134.51,10.74]
[1642578584302,4.19164137,134.59,134.51,12.57355053]
[1642578584602,4.19164137,134.61,134.53,74.03]
[1642578584801,4.19164137,134.61,134.54,0.25]
[1642578584802,2.972,134.61,134.54,0.25]
[1642578585000,36.41091297,134.62,134.56,11.1455]
[1642578585205,58.7732,134.64,134.57,0.25]
[1642578585401,14.1168,134.64,134.57,0.25]
[1642578585601,7.16264137,134.66,134.57,0.25]
[1642578585804,7.16264137,134.66,134.57,37.38133668]
[1642578586003,18.30684137,134.66,134.57,54.47613668]
[1642578586605,18.30684137,134.66,134.57,65.21613668]
[1642578587006,14.1152,134.66,134.57,65.21613668]
[1642578587207,14.1152,134.66,134.57,139.24613668]
[1642578587404,6.0,134.65,134.57,139.24613668]
[1642578587606,14.1152,134.66,134.57,139.24613668]
[1642578588005,2.971,134.66,134.57,65.21613668]
[1642578588505,2.971,134.67,134.57,65.21613668]
[1642578588907,2.971,134.68,134.57,67.05968721]
[1642578589110,6.0,134.67,134.57,66.79968721]
[1642578589307,6.0,134.67,134.58,74.03]
[1642578589506,6.0,134.67,134.6,11.1412]
[1642578589707,6.0,134.67,134.61,15.39615187]
[1642578590207,6.0,134.67,134.62,10.74]
[1642578590421,6.0,134.67,134.63,74.03]
[1642578590618,4.3457119,134.69,134.65,39.0]
[1642578590818,4.3457119,134.69,134.66,10.99]
[1642578591017,4.19164137,134.76,134.66,10.99]
[1642578591219,2.97,134.74,134.67,32.78562478]
[1642578591420,2.969,134.75,134.68,10.74]
[1642578591620,2.969,134.76,134.68,10.99]
[1642578592219,6.0,134.75,134.68,10.99]
[1642578592420,23.74181148,134.81,134.69,70.0]
[1642578592619,0.02945047,134.82,134.76,134.2]
[1642578592820,0.02945047,134.82,134.77,13.957]
[1642578593023,0.02945047,134.82,134.77,95.56679047]
[1642578593218,0.02945047,134.82,134.77,15.53679047]
[1642578593420,0.02945047,134.82,134.78,94.60098863]
[1642578593619,0.00945047,134.82,134.79,84.77]
[1642578593919,0.00945047,134.82,134.79,236.85735969]
[1642578594154,0.00945047,134.82,134.81,134.2]
[1642578594358,0.00945047,134.82,134.81,156.0611]
[1642578594654,0.00945047,134.82,134.81,162.62620171]
[1642578594860,0.00945047,134.82,134.81,164.20599218]
[1642578595055,0.00945047,134.82,134.81,157.89089047]
[1642578595255,0.00945047,134.82,134.81,156.0611]
[1642578595458,6.07385041,134.82,134.81,144.94]
[1642578595658,6.07385041,134.82,134.81,10.74]
[1642578596057,45.78118953,134.89,134.82,39.0]
[1642578596254,2.966,134.93,134.83,10.74]
[1642578596456,2.966,134.91,134.83,10.74]
[1642578596754,14.0872,134.92,134.84,11.1215]
[1642578596958,11.1222,134.92,134.84,11.1215]
[1642578597159,2.965,134.91,134.77,2.965]
[1642578597355,2.965,134.91,134.81,10.74]
[1642578597356,6.0,134.91,134.81,10.74]
[1642578597555,2.966,134.9,134.81,10.74]
[1642578597755,0.25,134.9,134.81,10.74]
[1642578597955,35.24344597,134.88,134.82,11.1242]
[1642578598159,8.966,134.87,134.81,10.74]
[1642578598655,6.0,134.87,134.82,10.0]
[1642578598855,2.966,134.91,134.83,10.74]
[1642578599059,11.1237,134.9,134.83,21.8637]
[1642578599257,2.965,134.89,134.83,21.8637]
[1642578599458,2.965,134.89,134.83,10.74]
[1642578600058,6.25,134.88,134.83,10.74]
[1642578600259,37.03838278,134.87,134.83,10.74]
[1642578600660,6.25,134.86,134.83,10.74]
[1642578600858,9.03039994,134.85,134.83,10.74]
[1642578601058,6.0,134.84,134.83,10.74]
[1642578601858,6.0,134.84,134.8,2.966]
[1642578602462,6.0,134.85,134.79,10.74]
[1642578602663,3.216,134.83,134.75,13.706]
[1642578602864,0.25,134.83,134.75,10.74]
[1642578603061,0.25,134.83,134.72,2.967]
[1642578603062,6.0,134.82,134.72,2.967]
[1642578603265,8.967,134.82,134.72,2.967]
[1642578603465,0.25,134.81,134.72,2.967]
[1642578603662,2.968,134.8,134.72,2.967]
[1642578603864,52.45544218,134.81,134.72,2.967]
[1642578604065,6.0,134.8,134.72,14.0994]
[1642578604267,6.0,134.8,134.73,0.25]
[1642578604465,6.0,134.8,134.74,2.968]
[1642578605295,6.0,134.8,134.75,0.25]
[1642578605472,6.0,134.8,134.75,10.99]
[1642578605668,6.0,134.81,134.75,10.99]
[1642578605871,9.217,134.85,134.75,10.99]
[1642578606070,5.5,134.85,134.75,10.99]
[1642578606268,5.5,134.85,134.76,19.44262919]
[1642578606471,11.1278,134.85,134.77,11.1278]
[1642578606772,2.967,134.87,134.77,22.1178]
[1642578606969,2.967,134.88,134.77,22.1178]
[1642578607171,2.966,134.9,134.78,1.57871376]
[1642578607371,6.0,134.87,134.8,11.1244]
[1642578607569,17.125,134.89,134.8,11.1244]
[1642578607771,17.125,134.89,134.79,18.18346115]
[1642578607971,42.86511785,134.88,134.8,0.25]
[1642578608472,6.0,134.87,134.79,29.30946115]
[1642578608670,8.966,134.87,134.79,24.832]
[1642578609173,8.966,134.87,134.79,21.866]
[1642578609370,8.966,134.87,134.79,10.74]
[1642578609572,0.25,134.86,134.79,10.74]
[1642578609770,2.966,134.85,134.79,10.74]
[1642578610171,6.0,134.84,134.8,0.25]
[1642578610371,6.0,134.84,134.8,2.966]
[1642578610572,20.0921,134.87,134.8,3.216]
[1642578610771,0.25,134.86,134.8,3.216]
[1642578611273,0.25,134.86,134.8,2.966]
[1642578611672,11.3768,134.86,134.8,2.966]
[1642578612171,11.3768,134.86,134.79,10.74]
[1642578612172,50.07536404,134.85,134.79,10.74]
[1642578612572,0.25,134.84,134.79,10.74]
[1642578613584,0.25,134.84,134.77,11.128]
[1642578613775,0.25,134.84,134.78,0.25]
[1642578614081,47.10936404,134.85,134.79,2.967]
[1642578614277,6.0,134.85,134.79,2.967]
[1642578614475,6.0,134.85,134.79,14.0933]
[1642578614675,17.1261,134.87,134.79,24.8333]
[1642578614876,20.0921,134.87,134.79,24.8333]
[1642578615077,0.25,134.86,134.79,24.8333]
[1642578615278,35.595611,134.86,134.79,24.8333]
[1642578615679,6.0,134.85,134.79,13.707]
[1642578616278,0.25,134.84,134.79,13.707]
[1642578616877,6.0,134.85,134.79,13.707]
[1642578617280,6.0,134.85,134.8,0.25]
[1642578617480,6.0,134.87,134.8,0.25]
[1642578617680,6.0,134.87,134.81,14.0903]
[1642578618080,6.0,134.88,134.81,16.91716582]
[1642578618282,6.0,134.88,134.81,90.94716582]
[1642578618683,6.0,134.88,134.82,0.25]
[1642578618881,6.0,134.88,134.84,11.1214]
[1642578619081,6.0,134.88,134.85,76.996]
[1642578619283,6.0,134.88,134.85,77.246]
[1642578619682,6.0,134.93,134.86,24.05922452]
[1642578619883,6.0,134.93,134.87,14.0849]
[1642578620082,6.0,134.94,134.87,14.3349]
[1642578620506,11.1186,134.96,134.88,74.03]
[1642578620707,6.0,134.95,134.89,0.25]
[1642578621107,6.0,134.95,134.89,3.07686582]
[1642578621709,14.0827,134.98,134.89,3.07686582]
[1642578621906,4.18468024,134.97,134.89,3.07686582]
[1642578622110,4.18468024,134.97,134.89,14.19486582]
[1642578622307,4.18468024,134.97,134.9,74.03]
[1642578622509,4.18468024,134.98,134.89,3.07686582]
[1642578622711,39.0987281,134.98,134.89,3.07686582]
[1642578623008,7.14868024,134.97,134.89,3.07686582]
[1642578623210,2.964,134.97,134.89,3.07686582]
[1642578623410,6.0,134.96,134.91,11.1163]
[1642578624008,6.0,134.96,134.89,3.07686582]
[1642578624209,6.0,134.96,134.89,3.214]
[1642578624810,6.0,134.96,134.9,11.1174]
[1642578625010,6.0,134.96,134.91,2.964]
[1642578625209,6.0,134.96,134.9,11.1174]
[1642578625410,8.964,134.97,134.9,11.1174]
[1642578625610,6.0,134.97,134.9,11.1174]
[1642578625810,6.0,134.97,134.91,0.25]
[1642578626413,17.1178,134.97,134.91,0.25]
[1642578626813,0.25,134.96,134.89,14.082]
[1642578627013,0.25,134.96,134.87,10.74]
[1642578627014,3.214,134.96,134.82,2.964]
[1642578627213,4.9878939,134.96,134.82,2.964]
[1642578627412,10.17486468,134.95,134.83,10.74]
[1642578627613,7.13986468,134.94,134.83,10.74]
[1642578627821,42.22148716,134.93,134.83,10.74]
[1642578628018,2.965,134.92,134.83,10.74]
[1642578628317,3.215,134.92,134.84,3.215]
[1642578628517,6.0,134.91,134.84,21.77898522]
[1642578628729,6.0,134.91,134.85,86.34871376]
[1642578628920,6.0,134.91,134.86,2.965]
[1642578629116,6.0,134.92,134.86,3.215]
[1642578629317,6.0,134.92,134.86,4.79371376]
[1642578629517,17.1185,134.97,134.87,10.74]
[1642578629716,41.56324427,134.96,134.88,77.244]
[1642578630116,6.0,134.95,134.88,77.244]
[1642578630317,0.25,134.94,134.88,77.244]
[1642578630517,6.0,134.95,134.88,74.28]
[1642578631319,6.0,134.95,134.88,0.25]
[1642578631521,6.0,134.95,134.88,11.3679]
[1642578631719,0.25,134.94,134.88,11.3679]
[1642578631918,6.0,134.95,134.88,11.3679]
[1642578632323,6.84414653,134.95,134.87,13.704]
[1642578632519,3.214,134.94,134.87,2.964]
[1642578632920,6.0,134.93,134.87,2.964]
[1642578633222,44.03910634,134.91,134.82,2.965]
[1642578633421,2.965,134.9,134.83,11.1229]
[1642578633720,9.215,134.9,134.82,2.965]
[1642578635321,20.3387,134.9,134.81,2.966]
[1642578635521,22.1125939,134.9,134.78,13.706]
[1642578635723,22.1125939,134.9,134.78,10.74]
[1642578636121,4.17790748,134.89,134.78,10.74]
[1642578636322,3.216,134.88,134.78,10.74]
[1642578636524,11.1285,134.85,134.78,10.74]
[1642578636724,3.217,134.84,134.75,13.706]
[1642578636923,9.217,134.84,134.75,13.706]
[1642578637322,46.80075745,134.83,134.75,39.09047641]
[1642578637522,6.0,134.82,134.75,26.41351376]
[1642578637822,6.0,134.82,134.76,0.25]
[1642578638021,6.0,134.82,134.77,2.967]
[1642578639225,0.25,134.81,134.76,10.74]
[1642578639722,0.25,134.81,134.73,2.967]
[1642578639924,2.968,134.8,134.71,2.968]
[1642578640123,6.0,134.79,134.7,10.74]
[1642578640322,2.968,134.78,134.7,10.74]
[1642578640522,42.72331238,134.77,134.7,10.74]